[Event "Titled Tuesday Blitz July 11 Early 2023"]
[White "Chernomordik, Pavel"]
[Black "Haitin, Ilja"]
[WhiteFideId "2804530"]
[BlackFideId "4501764"]
[WhiteElo "2548"]
[BlackElo "2376"]
[Result "1-0"]
[Round "7"]
[TimeControl "180+2"]
[Date "2023.07.11"]
[WhiteClock "0:00:06"]
[BlackClock "0:00:00"]
[Board "130"]

1. e4 {[%clk 0:03:00]}  e6 {[%clk 0:02:53]} 2. Nc3 {[%clk 0:03:00]}  d5 {[%clk 0:02:50]} 3. d4 {[%clk 0:02:59]}  Be7 {[%clk 0:02:49]} 4. Nf3 {[%clk 0:02:54]}  Nf6 {[%clk 0:02:47]} 5. Bd3 {[%clk 0:02:50]}  c5 {[%clk 0:02:46]} 6. e5 {[%clk 0:02:32]}  Nfd7 {[%clk 0:02:43]} 7. dxc5 {[%clk 0:02:32]}  Nc6 {[%clk 0:02:41]} 8. Qe2 {[%clk 0:02:30]}  Nxc5 {[%clk 0:02:40]} 9. O-O {[%clk 0:02:22]}  g5 {[%clk 0:02:32]} 10. Bb5 {[%clk 0:02:14]}  a6 {[%clk 0:02:30]} 11. Bxc6+ {[%clk 0:02:13]}  bxc6 {[%clk 0:02:30]} 12. Nd4 {[%clk 0:02:13]}  Bd7 {[%clk 0:02:29]} 13. f4 {[%clk 0:02:06]}  gxf4 {[%clk 0:02:27]} 14. Bxf4 {[%clk 0:02:05]}  Qb6 {[%clk 0:02:27]} 15. Qf2 {[%clk 0:01:57]}  Rg8 {[%clk 0:02:22]} 16. b3 {[%clk 0:01:43]}  O-O-O {[%clk 0:02:13]} 17. Be3 {[%clk 0:01:42]}  Qb8 {[%clk 0:01:55]} 18. Nxc6 {[%clk 0:01:35]}  Bxc6 {[%clk 0:01:53]} 19. Bxc5 {[%clk 0:01:34]}  Bxc5 {[%clk 0:01:49]} 20. Qxc5 {[%clk 0:01:33]}  Qc7 {[%clk 0:01:40]} 21. Ne2 {[%clk 0:01:21]}  Be8 {[%clk 0:01:23]} 22. Qxc7+ {[%clk 0:01:19]}  Kxc7 {[%clk 0:01:24]} 23. Nd4 {[%clk 0:01:19]}  Kb6 {[%clk 0:01:24]} 24. Rac1 {[%clk 0:01:12]}  Rc8 {[%clk 0:01:23]} 25. c3 {[%clk 0:01:03]}  Rg5 {[%clk 0:01:22]} 26. Rfe1 {[%clk 0:01:02]}  a5 {[%clk 0:01:16]} 27. Kf2 {[%clk 0:01:01]}  Bd7 {[%clk 0:01:13]} 28. g3 {[%clk 0:01:00]}  h5 {[%clk 0:01:04]} 29. h4 {[%clk 0:00:51]}  Rg4 {[%clk 0:01:02]} 30. Ne2 {[%clk 0:00:50]}  Rcg8 {[%clk 0:00:58]} 31. Rg1 {[%clk 0:00:49]}  Re4 {[%clk 0:00:52]} 32. Nf4 {[%clk 0:00:49]}  Rxe5 {[%clk 0:00:52]} 33. Rce1 {[%clk 0:00:48]}  Rf5 {[%clk 0:00:52]} 34. Ke3 {[%clk 0:00:45]}  Bc6 {[%clk 0:00:48]} 35. Ref1 {[%clk 0:00:40]}  e5 {[%clk 0:00:46]} 36. Ne2 {[%clk 0:00:38]}  Rxf1 {[%clk 0:00:36]} 37. Rxf1 {[%clk 0:00:38]}  Bb5 {[%clk 0:00:34]} 38. Rf6+ {[%clk 0:00:32]}  Kc5 {[%clk 0:00:29]} 39. Rxf7 {[%clk 0:00:27]}  Bxe2 {[%clk 0:00:29]} 40. Kxe2 {[%clk 0:00:27]}  Rxg3 {[%clk 0:00:29]} 41. Rf5 {[%clk 0:00:23]}  Rxc3 {[%clk 0:00:16]} 42. Rxe5 {[%clk 0:00:20]}  Rc2+ {[%clk 0:00:13]} 43. Kd3 {[%clk 0:00:20]}  Rxa2 {[%clk 0:00:12]} 44. Rxh5 {[%clk 0:00:20]}  Rb2 {[%clk 0:00:11]} 45. Kc3 {[%clk 0:00:20]}  Rh2 {[%clk 0:00:11]} 46. Rh7 {[%clk 0:00:16]}  Rh3+ {[%clk 0:00:11]} 47. Kc2 {[%clk 0:00:16]}  Kd4 {[%clk 0:00:11]} 48. Ra7 {[%clk 0:00:15]}  Rxh4 {[%clk 0:00:09]} 49. Rxa5 {[%clk 0:00:14]}  Rh2+ {[%clk 0:00:10]} 50. Kd1 {[%clk 0:00:13]}  Rb2 {[%clk 0:00:08]} 51. Rb5 {[%clk 0:00:13]}  Ke4 {[%clk 0:00:05]} 52. Kc1 {[%clk 0:00:13]}  Rh2 {[%clk 0:00:04]} 53. Rc5 {[%clk 0:00:13]}  d4 {[%clk 0:00:04]} 54. Rc8 {[%clk 0:00:12]}  Kd3 {[%clk 0:00:03]} 55. b4 {[%clk 0:00:11]}  Rh1+ {[%clk 0:00:02]} 56. Kb2 {[%clk 0:00:11]}  Kd2 {[%clk 0:00:03]} 57. b5 {[%clk 0:00:11]}  Rh5 {[%clk 0:00:03]} 58. Rb8 {[%clk 0:00:10]}  d3 {[%clk 0:00:04]} 59. b6 {[%clk 0:00:09]}  Rb5+ {[%clk 0:00:03]} 60. Ka3 {[%clk 0:00:10]}  Kd1 {[%clk 0:00:03]} 61. Ka4 {[%clk 0:00:07]}  Rb1 {[%clk 0:00:00]} 62. Ka5 {[%clk 0:00:06]} 1-0


[Site "https://www.chess.com"]

[Event "Titled Tuesday Blitz July 11 Early 2023"]
[White "AyMitecK"]
[Black "Skuhala, Barbara"]
[BlackFideId "14605465"]
[WhiteElo "2546"]
[BlackElo "2335"]
[Result "1-0"]
[Round "7"]
[TimeControl "180+2"]
[Date "2023.07.11"]
[WhiteClock "0:01:54"]
[BlackClock "0:00:49"]
[Board "131"]

1. e4 {[%clk 0:03:00]}  c5 {[%clk 0:02:40]} 2. Nf3 {[%clk 0:03:00]}  d5 {[%clk 0:02:38]} 3. exd5 {[%clk 0:03:00]}  Qxd5 {[%clk 0:02:37]} 4. Nc3 {[%clk 0:03:00]}  Qd8 {[%clk 0:02:35]} 5. Bc4 {[%clk 0:02:57]}  e6 {[%clk 0:02:33]} 6. O-O {[%clk 0:02:56]}  Nf6 {[%clk 0:01:54]} 7. Re1 {[%clk 0:02:54]}  Be7 {[%clk 0:01:52]} 8. Ne4 {[%clk 0:02:43]}  O-O {[%clk 0:01:15]} 9. d3 {[%clk 0:02:30]}  a6 {[%clk 0:01:14]} 10. a4 {[%clk 0:02:29]}  Nc6 {[%clk 0:01:12]} 11. Be3 {[%clk 0:02:21]}  Rb8 {[%clk 0:01:10]} 12. Nxc5 {[%clk 0:02:11]}  b5 {[%clk 0:01:07]} 13. axb5 {[%clk 0:02:06]}  axb5 {[%clk 0:01:06]} 14. Bb3 {[%clk 0:02:06]}  Nd5 {[%clk 0:01:03]} 15. Ne4 {[%clk 0:02:02]}  h6 {[%clk 0:00:58]} 16. Bc5 {[%clk 0:01:58]}  Nf6 {[%clk 0:00:52]} 17. Nxf6+ {[%clk 0:01:55]}  Bxf6 {[%clk 0:00:49]} 18. Bxf8 {[%clk 0:01:54]} 1-0


[Site "https://www.chess.com"]

[Event "Titled Tuesday Blitz July 11 Early 2023"]
[White "Palencia Morales, Wilson Guillermo"]
[Black "Szente Varga, Fruzsina"]
[WhiteFideId "4401859"]
[BlackFideId "712264"]
[WhiteElo "2528"]
[BlackElo "2327"]
[Result "1-0"]
[Round "7"]
[TimeControl "180+2"]
[Date "2023.07.11"]
[WhiteClock "0:02:00"]
[BlackClock "0:00:05"]
[Board "132"]

1. d4 {[%clk 0:02:58]}  Nf6 {[%clk 0:02:52]} 2. c4 {[%clk 0:02:57]}  g6 {[%clk 0:02:49]} 3. Nf3 {[%clk 0:02:54]}  Bg7 {[%clk 0:02:49]} 4. Nc3 {[%clk 0:02:53]}  O-O {[%clk 0:02:49]} 5. e4 {[%clk 0:02:52]}  d6 {[%clk 0:02:49]} 6. Be2 {[%clk 0:02:52]}  e5 {[%clk 0:02:46]} 7. O-O {[%clk 0:02:52]}  Nc6 {[%clk 0:02:46]} 8. d5 {[%clk 0:02:52]}  Ne7 {[%clk 0:02:46]} 9. Ne1 {[%clk 0:02:52]}  Nd7 {[%clk 0:02:45]} 10. Nd3 {[%clk 0:02:53]}  f5 {[%clk 0:02:45]} 11. f3 {[%clk 0:02:52]}  f4 {[%clk 0:02:46]} 12. Bd2 {[%clk 0:02:51]}  g5 {[%clk 0:02:38]} 13. h3 {[%clk 0:02:50]}  h5 {[%clk 0:02:08]} 14. Rc1 {[%clk 0:02:49]}  Nf6 {[%clk 0:02:04]} 15. c5 {[%clk 0:02:48]}  Rf7 {[%clk 0:02:02]} 16. cxd6 {[%clk 0:02:48]}  cxd6 {[%clk 0:02:03]} 17. Nf2 {[%clk 0:02:48]}  Bf8 {[%clk 0:01:59]} 18. Nb5 {[%clk 0:02:45]}  Ng6 {[%clk 0:01:58]} 19. Qb3 {[%clk 0:02:44]}  Rg7 {[%clk 0:01:37]} 20. Rc2 {[%clk 0:02:37]}  Nh4 {[%clk 0:01:31]} 21. Be1 {[%clk 0:02:29]}  g4 {[%clk 0:01:25]} 22. hxg4 {[%clk 0:02:29]}  hxg4 {[%clk 0:01:26]} 23. fxg4 {[%clk 0:02:27]}  Bxg4 {[%clk 0:01:04]} 24. Nxg4 {[%clk 0:02:27]}  Nxg4 {[%clk 0:01:04]} 25. Bxg4 {[%clk 0:02:27]}  Rxg4 {[%clk 0:01:04]} 26. Qh3 {[%clk 0:02:27]}  Qg5 {[%clk 0:00:58]} 27. Bxh4 {[%clk 0:02:27]}  Rxh4 {[%clk 0:00:40]} 28. Qe6+ {[%clk 0:02:27]}  Kh7 {[%clk 0:00:33]} 29. Rf3 {[%clk 0:02:23]}  Qh5 {[%clk 0:00:16]} 30. Rc7+ {[%clk 0:02:11]}  Bg7 {[%clk 0:00:16]} 31. Rh3 {[%clk 0:02:00]}  Rxh3 {[%clk 0:00:16]} 32. Qxh3 {[%clk 0:02:00]}  Qxh3 {[%clk 0:00:16]} 33. gxh3 {[%clk 0:02:00]}  Kh6 {[%clk 0:00:11]} 34. Nxd6 {[%clk 0:02:00]}  b6 {[%clk 0:00:11]} 35. Nf5+ {[%clk 0:02:00]}  Kg5 {[%clk 0:00:11]} 36. Rxg7+ {[%clk 0:02:00]}  Kh5 {[%clk 0:00:05]} 37. h4 {[%clk 0:02:00]} 1-0


[Site "https://www.chess.com"]

[Event "Titled Tuesday Blitz July 11 Early 2023"]
[White "Chen, Max"]
[Black "Sarkar, Justin"]
[WhiteFideId "2622440"]
[BlackFideId "2010011"]
[WhiteElo "2478"]
[BlackElo "2260"]
[Result "1-0"]
[Round "7"]
[TimeControl "180+2"]
[Date "2023.07.11"]
[WhiteClock "0:01:11"]
[BlackClock "0:00:00"]
[Board "135"]

1. e4 {[%clk 0:03:00]}  e5 {[%clk 0:02:38]} 2. Nf3 {[%clk 0:02:59]}  Nc6 {[%clk 0:02:37]} 3. Bc4 {[%clk 0:02:54]}  Nf6 {[%clk 0:02:38]} 4. d3 {[%clk 0:02:53]}  Bc5 {[%clk 0:02:38]} 5. O-O {[%clk 0:02:54]}  O-O {[%clk 0:02:37]} 6. Nbd2 {[%clk 0:02:51]}  a6 {[%clk 0:02:34]} 7. c3 {[%clk 0:02:49]}  d6 {[%clk 0:02:31]} 8. Bb3 {[%clk 0:02:50]}  Ba7 {[%clk 0:02:30]} 9. h3 {[%clk 0:02:48]}  h6 {[%clk 0:02:28]} 10. Re1 {[%clk 0:02:47]}  Re8 {[%clk 0:02:25]} 11. Nf1 {[%clk 0:02:47]}  Be6 {[%clk 0:02:24]} 12. Ng3 {[%clk 0:02:47]}  Qd7 {[%clk 0:02:08]} 13. Be3 {[%clk 0:02:36]}  Bxe3 {[%clk 0:02:05]} 14. fxe3 {[%clk 0:02:32]}  d5 {[%clk 0:01:55]} 15. exd5 {[%clk 0:02:26]}  Nxd5 {[%clk 0:01:55]} 16. d4 {[%clk 0:02:24]}  Nb6 {[%clk 0:00:46]} 17. Bc2 {[%clk 0:02:19]}  Rad8 {[%clk 0:00:31]} 18. Nh4 {[%clk 0:02:05]}  Nc4 {[%clk 0:00:12]} 19. b3 {[%clk 0:02:01]}  Na3 {[%clk 0:00:09]} 20. Bd3 {[%clk 0:01:56]}  exd4 {[%clk 0:00:07]} 21. cxd4 {[%clk 0:01:53]}  Nxd4 {[%clk 0:00:05]} 22. Qh5 {[%clk 0:01:31]}  Ndb5 {[%clk 0:00:02]} 23. Rad1 {[%clk 0:01:24]}  Qe7 {[%clk 0:00:00]} 24. Nf3 {[%clk 0:01:11]} 1-0


[Site "https://www.chess.com"]

[Event "Titled Tuesday Blitz July 11 Early 2023"]
[White "Thiel, Thomas"]
[Black "Rodriguez Fontecha, Marcos"]
[WhiteFideId "4615964"]
[BlackFideId "2256576"]
[WhiteElo "2230"]
[BlackElo "2449"]
[Result "0-1"]
[Round "7"]
[TimeControl "180+2"]
[Date "2023.07.11"]
[WhiteClock "0:00:00"]
[BlackClock "0:00:05"]
[Board "136"]

1. e4 {[%clk 0:03:00]}  e6 {[%clk 0:03:00]} 2. d4 {[%clk 0:02:59]}  d5 {[%clk 0:03:00]} 3. Nc3 {[%clk 0:02:59]}  Bb4 {[%clk 0:03:00]} 4. e5 {[%clk 0:02:56]}  Ne7 {[%clk 0:02:58]} 5. a3 {[%clk 0:02:56]}  Bxc3+ {[%clk 0:02:55]} 6. bxc3 {[%clk 0:02:57]}  b6 {[%clk 0:02:55]} 7. Qg4 {[%clk 0:02:55]}  Ng6 {[%clk 0:02:54]} 8. h4 {[%clk 0:02:53]}  h5 {[%clk 0:02:54]} 9. Qg3 {[%clk 0:02:52]}  Ba6 {[%clk 0:02:55]} 10. Ne2 {[%clk 0:02:46]}  Qd7 {[%clk 0:02:34]} 11. Nf4 {[%clk 0:02:44]}  Nxf4 {[%clk 0:02:32]} 12. Bxf4 {[%clk 0:02:40]}  Rg8 {[%clk 0:02:04]} 13. Bxa6 {[%clk 0:02:36]}  Nxa6 {[%clk 0:02:03]} 14. Qd3 {[%clk 0:02:35]}  Qa4 {[%clk 0:01:58]} 15. Bg5 {[%clk 0:02:30]}  Qc4 {[%clk 0:01:52]} 16. Qxc4 {[%clk 0:02:10]}  dxc4 {[%clk 0:01:51]} 17. Kd2 {[%clk 0:02:05]}  c6 {[%clk 0:01:30]} 18. a4 {[%clk 0:02:01]}  Nc7 {[%clk 0:01:28]} 19. a5 {[%clk 0:01:53]}  Kd7 {[%clk 0:01:23]} 20. axb6 {[%clk 0:01:31]}  axb6 {[%clk 0:01:24]} 21. Rhb1 {[%clk 0:01:28]}  b5 {[%clk 0:01:22]} 22. f3 {[%clk 0:01:24]}  Nd5 {[%clk 0:01:20]} 23. Be3 {[%clk 0:01:23]}  f6 {[%clk 0:01:13]} 24. f4 {[%clk 0:01:16]}  fxe5 {[%clk 0:01:09]} 25. dxe5 {[%clk 0:01:16]}  Rgf8 {[%clk 0:00:56]} 26. g3 {[%clk 0:01:13]}  Rfb8 {[%clk 0:00:31]} 27. Bc5 {[%clk 0:01:12]}  Rc8 {[%clk 0:00:17]} 28. Re1 {[%clk 0:00:55]}  Ke8 {[%clk 0:00:17]} 29. Rf1 {[%clk 0:00:52]}  g6 {[%clk 0:00:09]} 30. Rg1 {[%clk 0:00:50]}  Kf7 {[%clk 0:00:08]} 31. Bd6 {[%clk 0:00:39]}  Nb6 {[%clk 0:00:05]} 32. Bc5 {[%clk 0:00:37]}  Na4 {[%clk 0:00:05]} 33. Bd6 {[%clk 0:00:37]}  Nb6 {[%clk 0:00:04]} 34. Bc5 {[%clk 0:00:34]}  Na4 {[%clk 0:00:05]} 35. Bd6 {[%clk 0:00:34]}  Ke8 {[%clk 0:00:05]} 36. g4 {[%clk 0:00:31]}  hxg4 {[%clk 0:00:06]} 37. Rxg4 {[%clk 0:00:29]}  Kf7 {[%clk 0:00:06]} 38. Rag1 {[%clk 0:00:27]}  Rg8 {[%clk 0:00:07]} 39. Rg5 {[%clk 0:00:26]}  Nb6 {[%clk 0:00:06]} 40. h5 {[%clk 0:00:25]}  gxh5 {[%clk 0:00:07]} 41. Bc5 {[%clk 0:00:17]}  Nd5 {[%clk 0:00:07]} 42. Rxh5 {[%clk 0:00:15]}  Rxg1 {[%clk 0:00:06]} 43. Bxg1 {[%clk 0:00:14]}  Nxf4 {[%clk 0:00:06]} 44. Rh7+ {[%clk 0:00:11]}  Kg6 {[%clk 0:00:06]} 45. Rc7 {[%clk 0:00:08]}  Ra6 {[%clk 0:00:06]} 46. Be3 {[%clk 0:00:05]}  Nd5 {[%clk 0:00:05]} 47. Rc8 {[%clk 0:00:03]}  Kf5 {[%clk 0:00:05]} 48. Bd4 {[%clk 0:00:00]}  Ke4 {[%clk 0:00:05]} 0-1


[Site "https://www.chess.com"]

[Event "Titled Tuesday Blitz July 11 Early 2023"]
[White "Pinheiro, Iung Alicio de O."]
[Black "Atanasov, Radislav"]
[WhiteFideId "2104350"]
[BlackFideId "2901471"]
[WhiteElo "2567"]
[BlackElo "2216"]
[Result "1-0"]
[Round "7"]
[TimeControl "180+2"]
[Date "2023.07.11"]
[WhiteClock "0:01:07"]
[BlackClock "0:00:00"]
[Board "138"]

1. d4 {[%clk 0:03:00]}  Nf6 {[%clk 0:02:20]} 2. c4 {[%clk 0:02:59]}  c5 {[%clk 0:02:20]} 3. d5 {[%clk 0:02:56]}  e6 {[%clk 0:02:10]} 4. Nc3 {[%clk 0:02:54]}  exd5 {[%clk 0:02:11]} 5. cxd5 {[%clk 0:02:55]}  d6 {[%clk 0:02:12]} 6. e4 {[%clk 0:02:55]}  g6 {[%clk 0:02:13]} 7. f4 {[%clk 0:02:55]}  Bg7 {[%clk 0:02:13]} 8. Bb5+ {[%clk 0:02:55]}  Nfd7 {[%clk 0:02:12]} 9. Nf3 {[%clk 0:02:56]}  O-O {[%clk 0:02:12]} 10. O-O {[%clk 0:02:55]}  Na6 {[%clk 0:02:12]} 11. a3 {[%clk 0:02:47]}  Nc7 {[%clk 0:02:12]} 12. Bd3 {[%clk 0:02:47]}  Rb8 {[%clk 0:02:12]} 13. Kh1 {[%clk 0:02:44]}  b5 {[%clk 0:02:12]} 14. f5 {[%clk 0:02:45]}  c4 {[%clk 0:02:11]} 15. Bc2 {[%clk 0:02:42]}  a5 {[%clk 0:02:05]} 16. Bg5 {[%clk 0:02:30]}  f6 {[%clk 0:02:04]} 17. Bf4 {[%clk 0:02:29]}  Ne5 {[%clk 0:02:01]} 18. Nd4 {[%clk 0:02:27]}  b4 {[%clk 0:01:57]} 19. axb4 {[%clk 0:02:24]}  axb4 {[%clk 0:01:58]} 20. Na4 {[%clk 0:02:10]}  gxf5 {[%clk 0:01:33]} 21. Bxe5 {[%clk 0:02:05]}  fxe5 {[%clk 0:01:29]} 22. Nc6 {[%clk 0:02:06]}  Qh4 {[%clk 0:01:20]} 23. Nxb8 {[%clk 0:02:05]}  fxe4 {[%clk 0:01:07]} 24. Rxf8+ {[%clk 0:02:01]}  Bxf8 {[%clk 0:01:08]} 25. Qe1 {[%clk 0:01:53]}  Qh5 {[%clk 0:00:55]} 26. Bxe4 {[%clk 0:01:45]}  Nb5 {[%clk 0:00:45]} 27. Nc6 {[%clk 0:01:34]}  Nd4 {[%clk 0:00:41]} 28. Nb6 {[%clk 0:01:29]}  Bg4 {[%clk 0:00:34]} 29. Nxd4 {[%clk 0:01:27]}  exd4 {[%clk 0:00:34]} 30. Nxc4 {[%clk 0:01:27]}  Bg7 {[%clk 0:00:08]} 31. Ra8+ {[%clk 0:01:19]}  Bf8 {[%clk 0:00:09]} 32. Qf2 {[%clk 0:01:16]}  Qh6 {[%clk 0:00:08]} 33. h3 {[%clk 0:01:07]}  Bxh3 {[%clk 0:00:05]} 34. gxh3 {[%clk 0:01:06]}  Qxh3+ {[%clk 0:00:00]} 35. Kg1 {[%clk 0:01:07]} 1-0


[Site "https://www.chess.com"]

[Event "Titled Tuesday Blitz July 11 Early 2023"]
[White "Nithyalakshmi, Sivanesan"]
[Black "Safin, Robert"]
[WhiteFideId "5706955"]
[BlackFideId "34189120"]
[WhiteElo "2352"]
[BlackElo "2555"]
[Result "1-0"]
[Round "7"]
[TimeControl "180+2"]
[Date "2023.07.11"]
[WhiteClock "0:01:45"]
[BlackClock "0:00:00"]
[Board "139"]

1. e4 {[%clk 0:03:00]}  e6 {[%clk 0:02:59]} 2. d4 {[%clk 0:03:00]}  d5 {[%clk 0:03:00]} 3. Bd3 {[%clk 0:03:00]}  dxe4 {[%clk 0:02:59]} 4. Bxe4 {[%clk 0:03:01]}  Nf6 {[%clk 0:03:00]} 5. Bf3 {[%clk 0:03:01]}  c5 {[%clk 0:03:00]} 6. Ne2 {[%clk 0:03:01]}  Nc6 {[%clk 0:03:00]} 7. Be3 {[%clk 0:02:52]}  cxd4 {[%clk 0:02:56]} 8. Nxd4 {[%clk 0:02:46]}  Ne5 {[%clk 0:02:55]} 9. Nc3 {[%clk 0:02:41]}  a6 {[%clk 0:02:55]} 10. Qe2 {[%clk 0:02:36]}  Nxf3+ {[%clk 0:02:54]} 11. gxf3 {[%clk 0:02:28]}  Bb4 {[%clk 0:02:39]} 12. O-O-O {[%clk 0:02:21]}  Bxc3 {[%clk 0:02:37]} 13. Nxe6 {[%clk 0:02:20]}  Qa5 {[%clk 0:01:50]} 14. Rd8+ {[%clk 0:02:12]}  Ke7 {[%clk 0:00:00]} 15. Bc5+ {[%clk 0:01:45]} 1-0


[Site "https://www.chess.com"]

[Event "Titled Tuesday Blitz July 11 Early 2023"]
[White "Thecourseoisildur"]
[Black "Fajdetic, Hrvoje"]
[BlackFideId "14501945"]
[WhiteElo "2544"]
[BlackElo "2327"]
[Result "1-0"]
[Round "7"]
[TimeControl "180+2"]
[Date "2023.07.11"]
[WhiteClock "0:02:03"]
[BlackClock "0:01:10"]
[Board "141"]

1. e4 {[%clk 0:03:00]}  c5 {[%clk 0:02:57]} 2. Nf3 {[%clk 0:03:00]}  a6 {[%clk 0:02:57]} 3. Nc3 {[%clk 0:03:00]}  Nc6 {[%clk 0:02:55]} 4. d4 {[%clk 0:02:57]}  cxd4 {[%clk 0:02:55]} 5. Nxd4 {[%clk 0:02:58]}  g6 {[%clk 0:02:55]} 6. Be3 {[%clk 0:02:56]}  Bg7 {[%clk 0:02:55]} 7. Nd5 {[%clk 0:02:50]}  d6 {[%clk 0:02:43]} 8. Nxc6 {[%clk 0:02:47]}  bxc6 {[%clk 0:02:42]} 9. Bb6 {[%clk 0:02:47]}  Qd7 {[%clk 0:02:18]} 10. Nc7+ {[%clk 0:02:45]}  Kf8 {[%clk 0:02:18]} 11. Nxa8 {[%clk 0:02:45]}  Qb7 {[%clk 0:02:18]} 12. Bd4 {[%clk 0:02:42]}  e5 {[%clk 0:02:06]} 13. Bc3 {[%clk 0:02:41]}  Ke7 {[%clk 0:02:01]} 14. f4 {[%clk 0:02:32]}  Qxa8 {[%clk 0:01:45]} 15. Bc4 {[%clk 0:02:25]}  Be6 {[%clk 0:01:38]} 16. Bxe6 {[%clk 0:02:22]}  Kxe6 {[%clk 0:01:37]} 17. fxe5 {[%clk 0:02:20]}  Bxe5 {[%clk 0:01:32]} 18. Bxe5 {[%clk 0:02:19]}  dxe5 {[%clk 0:01:32]} 19. O-O {[%clk 0:02:18]}  Nf6 {[%clk 0:01:21]} 20. Qf3 {[%clk 0:02:08]}  Qa7+ {[%clk 0:01:21]} 21. Kh1 {[%clk 0:02:06]}  Qe7 {[%clk 0:01:22]} 22. Rad1 {[%clk 0:02:04]}  Rb8 {[%clk 0:01:10]} 23. Qh3+ {[%clk 0:02:03]} 1-0


[Site "https://www.chess.com"]

[Event "Titled Tuesday Blitz July 11 Early 2023"]
[White "Zacurdajev, Dmitry"]
[Black "Matute Escobar, Roxanny"]
[WhiteFideId "4196309"]
[BlackFideId "3926028"]
[WhiteElo "2434"]
[BlackElo "2200"]
[Result "0-1"]
[Round "7"]
[TimeControl "180+2"]
[Date "2023.07.11"]
[WhiteClock "0:00:04"]
[BlackClock "0:00:29"]
[Board "150"]

1. d4 {[%clk 0:03:00]}  Nf6 {[%clk 0:02:59]} 2. c4 {[%clk 0:03:01]}  g6 {[%clk 0:02:58]} 3. Nc3 {[%clk 0:03:02]}  Bg7 {[%clk 0:02:59]} 4. e4 {[%clk 0:03:02]}  d6 {[%clk 0:02:59]} 5. Be2 {[%clk 0:03:03]}  O-O {[%clk 0:02:59]} 6. g4 {[%clk 0:03:02]}  e5 {[%clk 0:02:57]} 7. d5 {[%clk 0:02:59]}  a5 {[%clk 0:02:56]} 8. h4 {[%clk 0:02:59]}  Nfd7 {[%clk 0:02:53]} 9. h5 {[%clk 0:02:58]}  Nc5 {[%clk 0:02:53]} 10. Nh3 {[%clk 0:02:48]}  Nba6 {[%clk 0:02:47]} 11. Bg5 {[%clk 0:02:28]}  Qe8 {[%clk 0:02:45]} 12. Qd2 {[%clk 0:02:24]}  gxh5 {[%clk 0:02:25]} 13. gxh5 {[%clk 0:02:21]}  f5 {[%clk 0:02:25]} 14. Bh6 {[%clk 0:02:16]}  f4 {[%clk 0:02:20]} 15. Rg1 {[%clk 0:02:16]}  Rf7 {[%clk 0:02:19]} 16. O-O-O {[%clk 0:02:09]}  Bxh3 {[%clk 0:02:19]} 17. Bg4 {[%clk 0:02:04]}  Bxg4 {[%clk 0:02:06]} 18. Rxg4 {[%clk 0:02:04]}  Kh8 {[%clk 0:02:04]} 19. Bg5 {[%clk 0:02:00]}  Nb4 {[%clk 0:01:53]} 20. h6 {[%clk 0:01:46]}  Bf6 {[%clk 0:01:41]} 21. Rdg1 {[%clk 0:01:40]}  Bxg5 {[%clk 0:01:38]} 22. Rxg5 {[%clk 0:01:41]}  Qe7 {[%clk 0:01:34]} 23. f3 {[%clk 0:01:40]}  Nxa2+ {[%clk 0:01:34]} 24. Kb1 {[%clk 0:01:37]}  Nxc3+ {[%clk 0:01:33]} 25. bxc3 {[%clk 0:01:36]}  Qf6 {[%clk 0:01:23]} 26. Qg2 {[%clk 0:01:34]}  Rff8 {[%clk 0:01:18]} 27. Rf5 {[%clk 0:00:56]}  Qxh6 {[%clk 0:01:09]} 28. Rh1 {[%clk 0:00:48]}  Qg7 {[%clk 0:01:09]} 29. Rg5 {[%clk 0:00:47]}  Qd7 {[%clk 0:01:05]} 30. Qh2 {[%clk 0:00:31]}  b5 {[%clk 0:00:50]} 31. Rh5 {[%clk 0:00:16]}  Rf7 {[%clk 0:00:50]} 32. Qh4 {[%clk 0:00:17]}  bxc4 {[%clk 0:00:42]} 33. Kc2 {[%clk 0:00:08]}  Rb8 {[%clk 0:00:34]} 34. Qg5 {[%clk 0:00:06]}  Qa4+ {[%clk 0:00:29]} 35. Kd2 {[%clk 0:00:04]}  Rb2+ {[%clk 0:00:29]} 0-1


[Site "https://www.chess.com"]

[Event "Titled Tuesday Blitz July 11 Early 2023"]
[White "Mishra, Manoj"]
[Black "Nikologorsky, Matfei"]
[WhiteFideId "5006007"]
[BlackFideId "24102474"]
[WhiteElo "2185"]
[BlackElo "2417"]
[Result "0-1"]
[Round "7"]
[TimeControl "180+2"]
[Date "2023.07.11"]
[WhiteClock "0:01:01"]
[BlackClock "0:01:14"]
[Board "153"]

1. e4 {[%clk 0:02:58]}  c5 {[%clk 0:02:59]} 2. b4 {[%clk 0:02:58]}  cxb4 {[%clk 0:02:58]} 3. a3 {[%clk 0:02:58]}  d5 {[%clk 0:02:58]} 4. exd5 {[%clk 0:02:56]}  Qxd5 {[%clk 0:02:56]} 5. axb4 {[%clk 0:02:54]}  Qe5+ {[%clk 0:02:56]} 6. Be2 {[%clk 0:02:26]}  Qxa1 {[%clk 0:02:55]} 7. Nc3 {[%clk 0:02:27]}  Nf6 {[%clk 0:02:37]} 8. Nf3 {[%clk 0:02:25]}  e6 {[%clk 0:02:33]} 9. Nb5 {[%clk 0:02:07]}  Na6 {[%clk 0:02:31]} 10. Nfd4 {[%clk 0:02:03]}  Bxb4 {[%clk 0:02:26]} 11. Nb3 {[%clk 0:02:01]}  Qe5 {[%clk 0:02:24]} 12. O-O {[%clk 0:01:56]}  O-O {[%clk 0:02:19]} 13. d4 {[%clk 0:01:55]}  Qd5 {[%clk 0:02:04]} 14. c4 {[%clk 0:01:52]}  Qd8 {[%clk 0:02:01]} 15. Bb2 {[%clk 0:01:43]}  Bd7 {[%clk 0:01:59]} 16. g4 {[%clk 0:01:42]}  Bxb5 {[%clk 0:01:58]} 17. cxb5 {[%clk 0:01:42]}  Nc7 {[%clk 0:01:59]} 18. g5 {[%clk 0:01:38]}  Nfd5 {[%clk 0:01:58]} 19. h4 {[%clk 0:01:36]}  Rc8 {[%clk 0:01:49]} 20. Bd3 {[%clk 0:01:34]}  Qd6 {[%clk 0:01:47]} 21. Nc5 {[%clk 0:01:16]}  Qf4 {[%clk 0:01:34]} 22. Qh5 {[%clk 0:01:09]}  g6 {[%clk 0:01:34]} 23. Qh6 {[%clk 0:01:09]}  Qg4+ {[%clk 0:01:29]} 24. Kh1 {[%clk 0:01:06]}  Nf4 {[%clk 0:01:29]} 25. Be4 {[%clk 0:01:01]}  Qh3+ {[%clk 0:01:13]} 26. Kg1 {[%clk 0:01:01]}  Ne2# {[%clk 0:01:14]} 0-1


[Site "https://www.chess.com"]